fUSD/lending_fUSD_20250217
["ID","MTS","AMOUNT","RATE_DAILY","PERIOD"]
[353381904,1739807472322,-500.0,0.00014109,2]
[353381905,1739807472332,-685.22,0.00014109,2]
[353381906,1739807472343,-1070.7,0.00014109,2]
[353381907,1739807472353,-500.0,0.00014109,2]
[353381908,1739807472363,-500.0,0.00014109,2]
[353381909,1739807472374,-1539.55,0.00014109,2]
[353381910,1739807472385,-500.0,0.00014109,2]
[353381911,1739807472395,-747.79,0.00014109,2]
[353381912,1739807472405,-1026.38,0.00014109,2]
[353381913,1739807472415,-975.52,0.00014109,2]
[353381914,1739807472425,-678.17,0.00014109,2]
[353381915,1739807472434,-594.06,0.00014109,2]
[353381916,1739807472444,-780.0,0.00014109,2]
[353381917,1739807472454,-1153.12,0.00014109,2]
[353381918,1739807472464,-500.0,0.00014109,2]
[353381919,1739807472475,-1066.97,0.00014109,2]
[353381920,1739807472484,-1019.8,0.00014109,2]
[353381921,1739807472493,-560.06,0.00014109,2]
[353381922,1739807472503,-633.55,0.00014109,2]
[353381923,1739807472512,-1048.88,0.00014109,2]
[353381924,1739807472522,-626.8,0.00014109,2]
[353381925,1739807472532,-723.6,0.00014109,2]
[353381926,1739807472541,-500.0,0.00014109,2]
[353381927,1739807472550,-500.0,0.00014109,2]
[353381928,1739807472560,-551.93,0.00014109,2]
[353381929,1739807472572,-756.98,0.00014109,2]
[353381930,1739807472582,-852.93,0.00014109,2]
[353381931,1739807472592,-1050.49,0.00014109,2]
[353381932,1739807472602,-500.0,0.00014109,2]
[353381933,1739807472612,-500.0,0.00014109,2]
[353381934,1739807472622,-500.0,0.00014109,2]
[353381935,1739807472631,-500.0,0.00014109,2]
[353381936,1739807472641,-1267.08,0.00014109,2]
[353381937,1739807472651,-1036.5,0.00014109,2]
[353381938,1739807472661,-1011.2,0.00014109,2]
[353381939,1739807472671,-500.0,0.00014109,2]
[353381940,1739807472681,-500.0,0.00014109,2]
[353381941,1739807472690,-601.83,0.00014109,2]
[353381942,1739807472699,-290.70573096,0.00014109,2]
[353381943,1739807472710,-500.0,0.00014109,2]
[353381944,1739807472720,-1580.87,0.00014109,2]
[353381945,1739807472730,-620.39,0.00014109,2]
[353381946,1739807472740,-587.68,0.00014109,2]
[353381947,1739807472752,-660.55,0.00014109,2]
[353381948,1739807472762,-801.21,0.00014109,2]
[353381949,1739807472771,-2046.76,0.00014109,2]
[353381950,1739807472781,-790.46,0.00014109,2]
[353381951,1739807472791,-500.0,0.00014109,2]
[353381952,1739807472800,-681.15,0.00014109,2]
[353381953,1739807472858,-565.07,0.00014109,2]
[353381954,1739807472868,-500.0,0.00014109,2]
[353381955,1739807472879,-500.0,0.00014109,2]
[353381956,1739807472888,-500.0,0.00014109,2]
[353381957,1739807472898,-2398.73,0.00014109,2]
[353381958,1739807472908,-500.0,0.00014109,2]
[353381959,1739807472918,-2019.76,0.00014109,2]
[353381960,1739807472932,-500.0,0.00014109,2]
[353381961,1739807472942,-500.0,0.00014109,2]
[353381962,1739807472952,-1604.62,0.00014109,2]
[353381963,1739807472962,-534.13,0.00014109,2]
[353381964,1739807472973,-1719.53,0.00014109,2]
[353381965,1739807472983,-1063.26,0.00014109,2]
[353381966,1739807472992,-500.0,0.00014109,2]
[353381967,1739807473001,-562.89,0.00014109,2]
[353381968,1739807473010,-1290.74,0.00014109,2]
[353381969,1739807473021,-1133.18,0.00014109,2]
[353381970,1739807473030,-500.0,0.00014109,2]
[353381971,1739807473040,-520.45,0.00014109,2]
[353381972,1739807473049,-2505.64,0.00014109,2]
[353381973,1739807473059,-500.0,0.00014109,2]
[353381974,1739807473069,-564.08,0.00014109,2]
[353381975,1739807473079,-500.0,0.00014109,2]
[353381976,1739807473089,-517.74,0.00014109,2]
[353381977,1739807473099,-814.48,0.00014109,2]
[353381978,1739807473108,-1057.17,0.00014109,2]
[353381979,1739807473118,-739.21,0.00014109,2]
[353381980,1739807473127,-1202.79,0.00014109,2]
[353381981,1739807473137,-621.24,0.00014109,2]
[353381982,1739807473147,-500.0,0.00014109,2]
[353381983,1739807473157,-1418.14,0.00014109,2]
[353381984,1739807473167,-654.78,0.00014109,2]
[353381985,1739807473177,-4371.68,0.00014109,2]
[353381986,1739807473187,-1707.3,0.00014109,2]
[353381987,1739807473196,-572.8,0.00014109,2]
[353381988,1739807473206,-588.02,0.00014109,2]
[353381989,1739807473216,-1519.54,0.00014109,2]
[353381990,1739807473225,-797.96,0.00014109,2]
[353381991,1739807473235,-500.0,0.00014109,2]
[353381992,1739807473244,-2432.52,0.00014109,2]
[353381993,1739807473253,-500.0,0.00014109,2]
[353381994,1739807473263,-552.32,0.00014109,2]
[353381995,1739807473273,-500.0,0.00014109,2]
[353381996,1739807473282,-1511.33,0.00014109,2]
[353381997,1739807473293,-1043.05,0.00014109,2]
[353381998,1739807473302,-1468.51,0.00014109,2]
[353381999,1739807473312,-541.45,0.00014109,2]
[353382000,1739807473323,-1112.54,0.00014109,2]
[353382001,1739807473333,-500.0,0.00014109,2]
[353382002,1739807473342,-1039.9,0.00014109,2]
[353382003,1739807473352,-1196.9,0.00014109,2]
[353382004,1739807473361,-812.67,0.00014109,2]
[353382005,1739807473370,-500.0,0.00014109,2]
[353382006,1739807473381,-2132.15,0.00014109,2]
[353382007,1739807473390,-1050.4,0.00014109,2]
[353382008,1739807473400,-1483.69,0.00014109,2]
[353382009,1739807473409,-1369.18,0.00014109,2]
[353382010,1739807473419,-500.0,0.00014109,2]
[353382011,1739807473428,-653.46,0.00014109,2]
[353382012,1739807473438,-1965.34,0.00014109,2]
[353382013,1739807473447,-2581.63,0.00014109,2]
[353382014,1739807473456,-1894.74,0.00014109,2]
[353382015,1739807473466,-1801.72,0.00014109,2]
[353382016,1739807473475,-1435.92,0.00014109,2]
[353382017,1739807473484,-500.0,0.00014109,2]
[353382018,1739807473494,-676.24,0.00014109,2]
[353382019,1739807473503,-828.24,0.00014109,2]
[353382020,1739807473513,-1066.36,0.00014109,2]
[353382021,1739807473523,-500.0,0.00014109,2]
[353382022,1739807473533,-500.0,0.00014109,2]
[353382023,1739807473542,-1345.58,0.00014109,2]
[353382024,1739807473551,-1657.31,0.00014109,2]
[353382025,1739807473561,-1425.4,0.00014109,2]
[353382026,1739807473574,-2229.85,0.00014109,2]
[353382027,1739807473583,-525.74,0.00014109,2]
[353382028,1739807473592,-1884.16,0.00014109,2]
[353382029,1739807473602,-1194.03,0.00014109,2]
[353382030,1739807473612,-1836.48,0.00014109,2]
[353382031,1739807473621,-1606.52,0.00014109,2]
[353382032,1739807473631,-1788.94,0.00014109,2]
[353382033,1739807473640,-1804.02,0.00014109,2]
[353382034,1739807473649,-2166.2,0.00014109,2]
[353382035,1739807473659,-2535.58,0.00014109,2]
[353382036,1739807473668,-853.36,0.00014109,2]
[353382037,1739807473677,-1126.0,0.00014109,2]
[353382038,1739807473687,-638.12,0.00014109,2]
[353382039,1739807473696,-2061.78,0.00014109,2]
[353382040,1739807473704,-2134.86,0.00014109,2]
[353382041,1739807473713,-500.0,0.00014109,2]
[353382042,1739807473723,-1842.58,0.00014109,2]
[353382043,1739807473734,-1072.73,0.00014109,2]
[353382044,1739807473744,-7885.42,0.00014109,2]
[353382045,1739807473753,-500.0,0.00014109,2]
[353382046,1739807473763,-5452.19,0.00014109,2]
[353382047,1739807473772,-2172.79,0.00014109,2]
[353382048,1739807473781,-500.0,0.00014109,2]
[353382049,1739807473791,-1374.81,0.00014109,2]
[353382050,1739807473801,-2458.85,0.00014109,2]
[353382051,1739807473811,-2858.9,0.00014109,2]
[353382052,1739807473821,-500.0,0.00014109,2]
[353382053,1739807473830,-882.69,0.00014109,2]
[353382054,1739807473840,-651.75,0.00014109,2]
[353382055,1739807473849,-500.0,0.00014109,2]
[353382056,1739807473859,-500.0,0.00014109,2]
[353382057,1739807473868,-2720.75,0.00014109,2]
[353382058,1739807473878,-1648.91,0.00014109,2]
[353382059,1739807473888,-1178.62,0.00014109,2]
[353382060,1739807473897,-2204.17,0.00014109,2]
[353382061,1739807473907,-500.0,0.00014109,2]
[353382062,1739807473919,-1814.85,0.00014109,2]
[353382063,1739807473929,-1380.68,0.00014109,2]
[353382064,1739807473939,-500.0,0.00014109,2]
[353382065,1739807473949,-1938.39,0.00014109,2]
[353382066,1739807473958,-2244.08,0.00014109,2]
[353382067,1739807473969,-2071.51,0.00014109,2]
[353382068,1739807473978,-500.6,0.00014109,2]
[353382069,1739807473988,-612.79,0.00014109,2]
[353382070,1739807474000,-581.63,0.00014109,2]
[353382071,1739807474010,-500.0,0.00014109,2]
[353382072,1739807474020,-2400.66,0.00014109,2]
[353382073,1739807474031,-1207.45,0.00014109,2]
[353382074,1739807474042,-3070.4,0.00014109,2]
[353382075,1739807474052,-1143.41,0.00014109,2]
[353382076,1739807474062,-500.0,0.00014109,2]
[353382077,1739807474073,-1197.99,0.00014109,2]
[353382078,1739807474083,-500.0,0.00014109,2]
[353382079,1739807474092,-1667.68,0.00014109,2]
[353382080,1739807474101,-500.0,0.00014109,2]
[353382081,1739807474111,-500.0,0.00014109,2]
[353382082,1739807474120,-1541.63,0.00014109,2]
[353382083,1739807474130,-5518.95,0.00014109,2]
[353382084,1739807474142,-1955.16,0.00014109,2]
[353382085,1739807474152,-1942.56,0.00014109,2]
[353382086,1739807474161,-1149.06,0.00014109,2]
[353382087,1739807474172,-500.0,0.00014109,2]
[353382088,1739807474183,-1153.07,0.00014109,2]
[353382089,1739807474193,-500.0,0.00014109,2]
[353382090,1739807474204,-500.0,0.00014109,2]
[353382091,1739807474213,-1541.27,0.00014109,2]
[353382092,1739807474223,-500.0,0.00014109,2]
[353382093,1739807474234,-500.0,0.00014109,2]
[353382094,1739807474243,-500.0,0.00014109,2]
[353382095,1739807474252,-1315.16,0.00014109,2]
[353382096,1739807474262,-500.0,0.00014109,2]
[353382097,1739807474271,-1801.98,0.00014109,2]
[353382098,1739807474280,-500.0,0.00014109,2]
[353382099,1739807474290,-500.0,0.00014109,2]
[353382100,1739807474299,-2082.88,0.00014109,2]
[353382101,1739807474309,-1138.66,0.00014109,2]
[353382102,1739807474320,-1943.42,0.00014109,2]
[353382103,1739807474330,-500.0,0.00014109,2]
[353382104,1739807474339,-2980.55,0.00014109,2]
[353382105,1739807474349,-500.0,0.00014109,2]
[353382106,1739807474359,-1537.9,0.00014109,2]
[353382107,1739807474369,-951.04,0.00014109,2]
[353382108,1739807474379,-3797.93,0.00014109,2]
[353382109,1739807474388,-1352.91,0.00014109,2]
[353382110,1739807474399,-1240.17,0.00014109,2]
[353382111,1739807474409,-2181.55,0.00014109,2]
[353382112,1739807474419,-712.01,0.00014109,2]
[353382113,1739807474428,-500.0,0.00014109,2]
[353382114,1739807474438,-1396.2,0.00014109,2]
[353382115,1739807474448,-3051.02,0.00014109,2]
[353382116,1739807474457,-1258.31,0.00014109,2]
[353382117,1739807474467,-746.18,0.00014109,2]
[353382118,1739807474477,-1484.24,0.00014109,2]
[353382119,1739807474486,-1478.39,0.00014109,2]
[353382120,1739807474496,-1244.08,0.00014109,2]
[353382121,1739807474507,-664.49,0.00014109,2]
[353382122,1739807474518,-534.95,0.00014109,2]
[353382123,1739807474528,-1341.95,0.00014109,2]
[353382124,1739807474537,-1458.02,0.00014109,2]
[353382125,1739807474547,-1165.58,0.00014109,2]
[353382126,1739807474556,-1002.63,0.00014109,2]
[353382127,1739807474566,-2070.07,0.00014109,2]
[353382128,1739807474577,-1827.24,0.00014109,2]
[353382129,1739807474587,-1336.55,0.00014109,2]
[353382130,1739807474598,-2645.65,0.00014109,2]
[353382131,1739807474608,-500.0,0.00014109,2]
[353382132,1739807474618,-1074.8,0.00014109,2]
[353382133,1739807474628,-893.96,0.00014109,2]
[353382134,1739807474637,-670.42,0.00014109,2]
[353382135,1739807474647,-1489.8,0.00014109,2]
[353382136,1739807474657,-500.0,0.00014109,2]
[353382137,1739807474667,-2198.3,0.00014109,2]
[353382138,1739807474677,-200.0,0.00014112,2]
[353382139,1739807474686,-2733.35226029,0.00014146,2]
[353382140,1739807474695,-202.0,0.0001415,2]
[353382141,1739807474704,-189.70625443,0.00014173,2]
[353382142,1739807474715,-163.88647044,0.00014173,2]
[353382143,1739807474725,-511.92539287,0.00014173,2]
[353382144,1739807474735,-500.0,0.00014173,2]
[353382145,1739807474744,-172.50882552,0.00014173,2]
[353382146,1739807474754,-917.6146487,0.00014181,2]
[353382147,1739807474763,-5481.6705106,0.00014181,2]
[353382148,1739807474773,-307.7043,0.00014185,2]
[353382149,1739807474783,-848.67,0.0001419,2]
[353382150,1739807474792,-848.67,0.0001419,2]
[353382151,1739807474801,-869.210235,0.00014191,2]
[353382152,1739807474810,-805.829032,0.00014191,2]
[353382153,1739807474820,-500.0,0.00014191,2]
[353382154,1739807474829,-500.0,0.00014191,2]
[353382155,1739807474839,-500.0,0.00014191,2]
[353382156,1739807474848,-500.0,0.00014191,2]
[353382157,1739807474858,-583.65,0.00014191,2]
[353382158,1739807474867,-500.0,0.00014191,2]
[353382159,1739807474877,-500.0,0.00014191,2]
[353382160,1739807474887,-670.0,0.00014191,2]
[353382161,1739807474899,-500.0,0.00014191,2]
[353382162,1739807474909,-500.0,0.00014191,2]
[353382163,1739807474919,-500.0,0.00014191,2]
[353382164,1739807474932,-505.23,0.00014191,2]
[353382165,1739807474942,-582.08,0.00014191,2]
[353382166,1739807474951,-500.0,0.00014191,2]
[353382167,1739807474960,-492.01942792,0.00014191,2]
[353382168,1739807474971,-500.0,0.00014191,2]
[353382169,1739807474980,-521.71,0.00014191,2]
[353382170,1739807474990,-500.0,0.00014191,2]
[353382171,1739807475000,-500.0,0.00014191,2]
[353382172,1739807475010,-500.0,0.00014191,2]
[353382173,1739807475019,-500.0,0.00014191,2]
[353382174,1739807475028,-500.0,0.00014191,2]
[353382175,1739807475038,-500.0,0.00014191,2]
[353382176,1739807475048,-500.0,0.00014191,2]
[353382177,1739807475057,-716.0,0.00014191,2]
[353382178,1739807475067,-220.68884138,0.00014191,2]
[353382179,1739807475078,-724.35,0.00014191,2]
[353382180,1739807475087,-500.0,0.00014191,2]
[353382181,1739807475097,-505.21,0.00014191,2]
[353382182,1739807475107,-500.0,0.00014191,2]
[353382183,1739807475116,-500.0,0.00014191,2]
[353382184,1739807475125,-500.0,0.00014191,2]
[353382185,1739807475135,-886.78,0.00014191,2]
[353382186,1739807475144,-739.86,0.00014191,2]
[353382187,1739807475153,-500.0,0.00014191,2]
[353382188,1739807475162,-500.0,0.00014191,2]
[353382189,1739807475171,-545.59,0.00014191,2]
[353382190,1739807475180,-777.74,0.00014191,2]
[353382191,1739807475189,-500.0,0.00014191,2]
[353382192,1739807475198,-500.0,0.00014191,2]
[353382193,1739807475207,-916.92,0.00014191,2]
[353382194,1739807475216,-570.5,0.00014191,2]
[353382195,1739807475225,-1159.55,0.00014191,2]
[353382196,1739807475235,-500.0,0.00014191,2]
[353382197,1739807475244,-601.32,0.00014191,2]
[353382198,1739807475254,-587.92,0.00014191,2]
[353382199,1739807475263,-534.04,0.00014191,2]
[353382200,1739807475274,-599.83,0.00014191,2]
[353382201,1739807475284,-661.0,0.00014191,2]
[353382202,1739807475294,-533.51,0.00014191,2]
[353382203,1739807475304,-811.77,0.00014191,2]
[353382204,1739807475314,-401.2779066,0.00014191,2]
[353382205,1739807475325,-576.06,0.00014191,2]
[353382206,1739807475334,-593.38,0.00014191,2]
[353382207,1739807475343,-630.76,0.00014191,2]
[353382208,1739807475352,-714.58,0.00014191,2]
[353382209,1739807475361,-942.74,0.00014191,2]
[353382210,1739807475371,-500.0,0.00014191,2]
[353382211,1739807475380,-932.03,0.00014191,2]
[353382212,1739807475389,-851.93,0.00014191,2]
[353382213,1739807475399,-697.57,0.00014191,2]
[353382214,1739807475408,-500.0,0.00014191,2]
[353382215,1739807475417,-500.0,0.00014191,2]
[353382216,1739807475426,-500.0,0.00014191,2]
[353382217,1739807475436,-558.17,0.00014191,2]
[353382218,1739807475445,-901.05,0.00014191,2]
[353382219,1739807475455,-501.89,0.00014191,2]
[353382220,1739807475464,-958.61,0.00014191,2]
[353382221,1739807475474,-500.0,0.00014191,2]
[353382222,1739807475484,-651.14,0.00014191,2]
[353382223,1739807475494,-226.35922248,0.00014191,2]
[353382224,1739807475503,-715.24,0.00014191,2]
[353382225,1739807475513,-578.19,0.00014191,2]
[353382226,1739807475522,-533.54,0.00014191,2]
[353382227,1739807475532,-500.0,0.00014191,2]
[353382228,1739807475541,-500.0,0.00014191,2]
[353382229,1739807475550,-500.0,0.00014191,2]
[353382230,1739807475560,-649.57,0.00014191,2]
[353382231,1739807475569,-500.0,0.00014191,2]
[353382232,1739807475579,-658.48,0.00014191,2]
[353382233,1739807475588,-876.0,0.00014191,2]
[353382234,1739807475598,-500.0,0.00014191,2]
[353382235,1739807475608,-500.0,0.00014191,2]
[353382236,1739807475618,-500.0,0.00014191,2]
[353382237,1739807475627,-1088.47,0.00014191,2]
[353382238,1739807475637,-720.55,0.00014191,2]
[353382239,1739807475646,-806.09,0.00014191,2]
[353382240,1739807475655,-500.0,0.00014191,2]
[353382241,1739807475665,-441.63,0.00014191,2]
[353382242,1739807475674,-500.0,0.00014191,2]
[353382243,1739807475684,-946.71,0.00014191,2]
[353382244,1739807475693,-553.22,0.00014191,2]
[353382245,1739807475703,-500.0,0.00014191,2]
[353382246,1739807475713,-668.58,0.00014191,2]
[353382247,1739807475722,-500.0,0.00014191,2]
[353382248,1739807475731,-500.0,0.00014191,2]
[353382249,1739807475741,-998.85,0.00014191,2]
[353382250,1739807475750,-835.93,0.00014191,2]
[353382251,1739807475759,-500.0,0.00014191,2]
[353382252,1739807475769,-1006.39,0.00014191,2]
[353382253,1739807475778,-500.0,0.00014191,2]
[353382254,1739807475788,-500.0,0.00014191,2]
[353382255,1739807475797,-686.36,0.00014191,2]
[353382256,1739807475807,-1087.94,0.00014191,2]
[353382257,1739807475816,-820.65,0.00014191,2]
[353382258,1739807475826,-500.0,0.00014191,2]
[353382259,1739807475836,-868.32,0.00014191,2]
[353382260,1739807475846,-640.41,0.00014191,2]
[353382261,1739807475855,-538.04,0.00014191,2]
[353382262,1739807475865,-500.0,0.00014191,2]
[353382263,1739807475875,-964.43,0.00014191,2]
[353382264,1739807475885,-500.0,0.00014191,2]
[353382265,1739807475895,-500.0,0.00014191,2]
[353382266,1739807475905,-500.0,0.00014191,2]
[353382267,1739807475916,-500.0,0.00014191,2]
[353382268,1739807475927,-500.0,0.00014191,2]
[353382269,1739807475938,-1160.76,0.00014191,2]
[353382270,1739807475947,-500.0,0.00014191,2]
[353382271,1739807475959,-554.97,0.00014191,2]
[353382272,1739807475969,-500.0,0.00014191,2]
[353382273,1739807475979,-500.0,0.00014191,2]
[353382274,1739807475989,-663.55,0.00014191,2]
[353382275,1739807475998,-630.26,0.00014191,2]
[353382276,1739807476008,-551.48,0.00014191,2]
[353382277,1739807476018,-769.55,0.00014191,2]
[353382278,1739807476028,-636.61,0.00014191,2]
[353382279,1739807476037,-620.74,0.00014191,2]
[353382280,1739807476047,-622.98,0.00014191,2]
[353382281,1739807476057,-923.67,0.00014191,2]
[353382282,1739807476067,-532.9,0.00014191,2]
[353382283,1739807476079,-500.0,0.00014191,2]
[353382284,1739807476089,-726.8,0.00014191,2]
[353382285,1739807476099,-540.32,0.00014191,2]
[353382286,1739807476109,-650.65,0.00014191,2]
[353382287,1739807476119,-500.0,0.00014191,2]
[353382288,1739807476129,-1118.82,0.00014191,2]
[353382289,1739807476139,-1078.45,0.00014191,2]
[353382290,1739807476148,-500.0,0.00014191,2]
[353382291,1739807476159,-685.22,0.00014191,2]
[353382292,1739807476169,-1070.7,0.00014191,2]
[353382293,1739807476179,-500.0,0.00014191,2]
[353382294,1739807476189,-500.0,0.00014191,2]
[353382295,1739807476199,-1539.55,0.00014191,2]
[353382296,1739807476209,-500.0,0.00014191,2]
[353382297,1739807476219,-747.79,0.00014191,2]
[353382298,1739807476229,-1026.38,0.00014191,2]
[353382299,1739807476239,-975.52,0.00014191,2]
[353382300,1739807476251,-678.17,0.00014191,2]
[353382301,1739807476261,-594.06,0.00014191,2]
[353382302,1739807476271,-780.0,0.00014191,2]
[353382303,1739807476281,-1153.12,0.00014191,2]
[353382304,1739807476291,-1066.97,0.00014191,2]
[353382305,1739807476301,-1019.8,0.00014191,2]
[353382306,1739807476311,-560.06,0.00014191,2]
[353382307,1739807476320,-633.55,0.00014191,2]
[353382308,1739807476332,-1048.88,0.00014191,2]
[353382309,1739807476342,-626.8,0.00014191,2]
[353382310,1739807476352,-723.6,0.00014191,2]
[353382311,1739807476363,-500.0,0.00014191,2]
[353382312,1739807476372,-551.93,0.00014191,2]
[353382313,1739807476383,-500.0,0.00014191,2]
[353382314,1739807476393,-756.98,0.00014191,2]
[353382315,1739807476403,-852.93,0.00014191,2]
[353382316,1739807476412,-1050.49,0.00014191,2]
[353382317,1739807476422,-500.0,0.00014191,2]
[353382318,1739807476431,-500.0,0.00014191,2]
[353382319,1739807476441,-500.0,0.00014191,2]
[353382320,1739807476451,-500.0,0.00014191,2]
[353382321,1739807476461,-1267.08,0.00014191,2]
[353382322,1739807476471,-1036.5,0.00014191,2]
[353382323,1739807476481,-1011.2,0.00014191,2]
[353382324,1739807476491,-500.0,0.00014191,2]
[353382325,1739807476501,-500.0,0.00014191,2]
[353382326,1739807476511,-601.83,0.00014191,2]
[353382327,1739807476521,-500.0,0.00014191,2]
[353382328,1739807476531,-1580.87,0.00014191,2]
[353382329,1739807476542,-620.39,0.00014191,2]
[353382330,1739807476551,-587.68,0.00014191,2]
[353382331,1739807476562,-660.55,0.00014191,2]
[353382332,1739807476574,-801.21,0.00014191,2]
[353382333,1739807476584,-2046.76,0.00014191,2]
[353382334,1739807476594,-790.46,0.00014191,2]
[353382335,1739807476603,-500.0,0.00014191,2]
[353382336,1739807476613,-681.15,0.00014191,2]
[353382337,1739807476623,-565.07,0.00014191,2]
[353382338,1739807476633,-500.0,0.00014191,2]
[353382339,1739807476643,-500.0,0.00014191,2]
[353382340,1739807476653,-500.0,0.00014191,2]
[353382341,1739807476663,-2398.73,0.00014191,2]
[353382342,1739807476673,-500.0,0.00014191,2]
[353382343,1739807476683,-2019.76,0.00014191,2]
[353382344,1739807476692,-500.0,0.00014191,2]
[353382345,1739807476702,-500.0,0.00014191,2]
[353382346,1739807476712,-1604.62,0.00014191,2]
[353382347,1739807476721,-534.13,0.00014191,2]
[353382348,1739807476732,-1719.53,0.00014191,2]
[353382349,1739807476742,-1063.26,0.00014191,2]
[353382350,1739807476751,-500.0,0.00014191,2]
[353382351,1739807476761,-562.89,0.00014191,2]
[353382352,1739807476770,-1290.74,0.00014191,2]
[353382353,1739807476781,-1133.18,0.00014191,2]
[353382354,1739807476792,-574.00947692,0.00014191,2]
[353382355,1739807476803,-520.45,0.00014191,2]
[353382356,1739807476812,-500.0,0.00014191,2]
[353382357,1739807476823,-2505.64,0.00014191,2]
[353382358,1739807476833,-564.08,0.00014191,2]
[353382359,1739807476843,-500.0,0.00014191,2]
[353382360,1739807476853,-517.74,0.00014191,2]
[353382361,1739807476863,-814.48,0.00014191,2]
[353382362,1739807476873,-1057.17,0.00014191,2]
[353382363,1739807476883,-739.21,0.00014191,2]
[353382364,1739807476892,-1202.79,0.00014191,2]
[353382365,1739807476903,-621.24,0.00014191,2]
[353382366,1739807476913,-1418.14,0.00014191,2]
[353382367,1739807476928,-654.78,0.00014191,2]
[353382368,1739807476938,-4371.68,0.00014191,2]
[353382369,1739807476948,-1707.3,0.00014191,2]
[353382370,1739807476958,-572.8,0.00014191,2]
[353382371,1739807476969,-588.02,0.00014191,2]
[353382372,1739807476978,-1519.54,0.00014191,2]
[353382373,1739807476988,-797.96,0.00014191,2]
[353382374,1739807476999,-500.0,0.00014191,2]
[353382375,1739807477009,-2432.52,0.00014191,2]
[353382376,1739807477018,-500.0,0.00014191,2]
[353382377,1739807477029,-552.32,0.00014191,2]
[353382378,1739807477039,-500.0,0.00014191,2]
[353382379,1739807477050,-1511.33,0.00014191,2]
[353382380,1739807477060,-1043.05,0.00014191,2]
[353382381,1739807477071,-1468.51,0.00014191,2]
[353382382,1739807477085,-541.45,0.00014191,2]
[353382383,1739807477095,-1112.54,0.00014191,2]
[353382384,1739807477105,-500.0,0.00014191,2]
[353382385,1739807477116,-1039.9,0.00014191,2]
[353382386,1739807477126,-1196.9,0.00014191,2]
[353382387,1739807477136,-812.67,0.00014191,2]
[353382388,1739807477145,-500.0,0.00014191,2]
[353382389,1739807477155,-2132.15,0.00014191,2]
[353382390,1739807477165,-1050.4,0.00014191,2]
[353382391,1739807477175,-1483.69,0.00014191,2]
[353382392,1739807477185,-1369.18,0.00014191,2]
[353382393,1739807477195,-653.46,0.00014191,2]
[353382394,1739807477205,-500.0,0.00014191,2]
[353382395,1739807477215,-1965.34,0.00014191,2]
[353382396,1739807477225,-2581.63,0.00014191,2]
[353382397,1739807477235,-1894.74,0.00014191,2]
[353382398,1739807477245,-1801.72,0.00014191,2]
[353382399,1739807477255,-1435.92,0.00014191,2]
[353382400,1739807477265,-500.0,0.00014191,2]
[353382401,1739807477275,-676.24,0.00014191,2]
[353382402,1739807477285,-828.24,0.00014191,2]
[353382403,1739807477295,-1066.36,0.00014191,2]